bitfinex/quotes_ETHUSD_20240907
["timestamp","ask_amount","ask_price","bid_price","bid_amount"]
[1725718504545,0.96055488,2302.2,2302.1,0.25493552]
[1725718504751,3.43281611,2302.2,2301.8,8.68859]
[1725718504982,3.43281611,2302.2,2301.8,4.34429]
[1725718505190,6.43574257,2302.1,2301.9,0.25503491]
[1725718505364,6.48574263,2302.1,2301.9,0.25503491]
[1725718505561,11.74024745,2302.1,2301.9,0.25503491]
[1725718505763,2.53049385,2302.0,2301.6,4.34466]
[1725718505991,0.05000006,2301.9,2301.6,4.34466]
[1725718507702,8.05734257,2301.7,2301.2,4.3454]
[1725718507876,3.76264263,2301.7,2301.3,4.34528]
[1725718508071,3.76264263,2301.7,2301.3,8.69056]
[1725718508319,5.37368686,2301.7,2301.3,4.34528]
[1725718508973,5.37368686,2301.7,2301.3,8.69056]
[1725718509613,5.37368686,2301.7,2301.3,4.34528]
[1725718510120,5.37368686,2301.7,2301.1,8.69122]
[1725718510317,5.37368686,2301.7,2301.1,8.69115]
[1725718510318,7.0679,2301.6,2301.1,8.69115]
[1725718510480,0.05000006,2301.5,2301.1,8.69115]
[1725718510922,2.7231,2301.6,2301.3,4.34535]
[1725718511103,2.77310006,2301.6,2301.3,4.34535]
[1725718511279,0.05000006,2301.6,2301.3,4.34535]
[1725718511480,0.05000006,2301.6,2301.3,4.34526]
[1725718511682,5.35875197,2301.6,2301.1,4.34559]
[1725718511956,5.35875197,2301.6,2301.1,8.69122]
[1725718512218,5.35875197,2301.6,2301.2,0.25264543]
[1725718512921,7.0681,2301.5,2301.2,0.25264543]
[1725718513119,7.0681,2301.5,2301.0,4.34592]
[1725718513120,0.05000006,2301.4,2301.0,4.34592]
[1725718513436,0.05000006,2301.4,2301.3,0.25251502]
[1725718513573,1.38376874,2301.4,2301.0,4.34592]
[1725718513782,1.38376874,2301.4,2301.3,0.25251502]
[1725718514021,1.38376874,2301.4,2301.0,4.34592]
[1725718514204,10.79706257,2301.3,2300.8,4.3463]
[1725718514414,4.39555006,2301.2,2301.1,0.25272253]
[1725718514578,3.71264257,2301.1,2300.6,4.34667]
[1725718514775,0.05000006,2301.0,2300.7,4.34647]
[1725718516777,0.05000006,2301.0,2300.3,7.12473]
[1725718516778,0.05000006,2301.1,2300.8,4.34617]
[1725718516980,0.91055482,2301.3,2301.1,4.34556]
[1725718517180,0.96055488,2301.4,2301.1,4.34556]
[1725718517598,1.438907,2301.4,2301.1,4.34556]
[1725718518297,1.438907,2301.4,2300.7,4.34636]
[1725718518298,3.71264257,2301.3,2300.7,4.34636]
[1725718518638,3.71264257,2301.3,2300.9,4.3461]
[1725718518639,2.78890006,2301.2,2300.9,4.3461]
[1725718518998,8.04510488,2301.2,2300.7,8.69275]
[1725718519395,8.04510488,2301.2,2300.8,4.3463]
[1725718520039,3.71264257,2301.1,2300.6,4.34667]
[1725718520235,3.71264257,2301.1,2300.4,4.34698]
[1725718520236,10.79775257,2300.9,2300.4,4.34698]
[1725718520451,0.05000006,2300.8,2300.4,4.34698]
[1725718520747,0.05000006,2300.8,2300.3,4.34713]
[1725718520748,0.96055488,2300.8,2300.3,4.34713]
[1725718520956,0.96055488,2300.8,2300.5,4.60121771]
[1725718521264,3.64945482,2300.9,2300.6,4.34655]
[1725718521456,2.78890006,2300.9,2300.6,4.6008211]
[1725718521938,5.31221111,2300.9,2300.6,0.2542711]
[1725718522124,5.31221111,2300.9,2300.6,4.6009611]
[1725718522454,5.26221105,2300.9,2300.7,4.34649]
[1725718522669,4.35165623,2300.9,2300.7,4.34649]
[1725718522824,0.91055482,2301.0,2300.9,4.34612]
[1725718523022,1.36961484,2301.1,2300.9,4.34612]
[1725718523023,3.96055488,2301.1,2300.9,4.34612]
[1725718523271,3.96055488,2301.1,2300.9,0.25412539]
[1725718523563,3.96055488,2301.1,2300.9,4.60023539]
[1725718523564,0.96055488,2301.1,2300.9,4.60023539]
[1725718523804,0.05000006,2301.1,2300.9,4.60023539]
[1725718523964,8.18055482,2301.2,2300.9,4.60015539]
[1725718524168,8.23055488,2301.2,2300.9,4.60015539]
[1725718524467,0.91055482,2301.1,2300.9,4.60015539]
[1725718525072,0.96055488,2301.1,2300.9,4.60015539]
[1725718525525,0.96055488,2301.1,2300.9,8.94617539]
[1725718525926,0.96055488,2301.1,2300.9,4.60014539]
[1725718526235,0.91055482,2301.1,2300.9,8.94617539]
[1725718526445,0.91055482,2301.2,2301.1,4.34574]
[1725718526946,0.91055482,2301.3,2301.2,4.34555]
[1725718527355,0.91055482,2301.4,2301.3,4.34537]
[1725718527557,1.36961484,2301.5,2301.4,4.34518]
[1725718527773,0.91076752,2301.6,2301.4,7.58255492]
[1725718528068,0.91076752,2301.7,2301.5,4.34499]
[1725718528227,0.91076752,2301.7,2301.6,4.3448]
[1725718528432,0.91076752,2301.7,2301.6,4.58935265]
[1725718528657,0.91076752,2301.8,2301.7,8.68922]
[1725718528984,0.91076752,2302.0,2301.9,8.68846]
[1725718529129,9.09615312,2302.2,2302.1,8.6877]
[1725718529130,8.18076752,2302.2,2302.1,8.6877]
[1725718529329,0.91076752,2302.2,2302.1,8.6877]
[1725718529559,0.91076752,2302.3,2302.2,4.34367]
[1725718529972,0.91076752,2302.3,2302.2,4.58703899]
[1725718530975,1.36961484,2302.4,2302.2,4.58703899]
[1725718530976,0.91076752,2302.4,2302.2,4.58703899]
[1725718532376,0.91076752,2302.4,2302.3,8.68696]
[1725718532533,0.91076752,2302.5,2302.3,4.6291127]
[1725718532931,0.91076752,2302.6,2302.4,4.34312]
[1725718533192,0.91076752,2302.5,2302.4,4.62752431]
[1725718533536,0.91076752,2302.6,2302.5,8.6862]
[1725718533867,0.91076752,2302.8,2302.7,4.34272]
[1725718534032,0.91076752,2302.9,2302.8,4.34253]
[1725718534227,0.91076752,2303.1,2303.0,4.34216]
[1725718534431,0.91076752,2303.3,2302.9,4.34235]
[1725718534676,0.91076752,2303.3,2303.0,0.28352698]
[1725718534832,0.91076752,2303.3,2303.1,4.34197]
[1725718535249,0.91076752,2303.3,2303.2,0.28331613]
[1725718535450,1.4196149,2303.4,2303.2,0.28331613]
[1725718535451,0.96076758,2303.4,2303.2,0.28331613]
[1725718535652,0.91076752,2303.4,2303.2,0.28331613]
[1725718535854,0.05000006,2303.5,2303.2,4.62498613]
[1725718536068,0.05000006,2303.5,2303.2,4.34167]
[1725718536385,0.96076758,2303.5,2303.3,0.28293746]
[1725718536578,0.05000006,2303.5,2303.3,0.28293746]
[1725718536878,1.89163651,2303.5,2303.3,0.28293746]
[1725718537085,0.98086899,2303.5,2303.3,0.28293746]
[1725718538088,9.23286651,2303.5,2303.0,4.34203]
[1725718538289,6.37094257,2303.3,2302.4,4.34322]
[1725718538442,8.6841,2303.1,2302.6,4.34274]
[1725718538648,0.92341007,2303.0,2302.5,4.34309]
[1725718538995,0.92341007,2303.0,2302.4,4.34312]
[1725718539179,0.92341007,2303.0,2302.6,4.34291]
[1725718539340,0.05000006,2303.0,2302.7,4.34272]
[1725718539541,0.05000006,2303.1,2302.7,4.34272]
[1725718541782,0.05000006,2303.1,2302.8,0.28334955]
[1725718541952,0.05000006,2303.1,2302.7,4.34272]
[1725718542142,0.05000006,2303.1,2302.9,0.28324411]
[1725718542351,1.95151508,2303.1,2302.7,4.34272]
[1725718542549,1.95151508,2303.1,2303.0,0.28313867]
[1725718542757,1.95151508,2303.1,2302.7,4.34272]
[1725718542959,3.05000006,2303.2,2303.0,0.28313867]
[1725718543266,3.05000006,2303.2,2302.8,4.34251]
[1725718543451,3.05000006,2303.2,2303.1,0.28247225]
[1725718543651,3.05000006,2303.2,2302.9,4.34231]
[1725718543652,0.05000006,2303.2,2302.9,4.34231]
[1725718543883,0.05000006,2303.4,2302.9,4.34224]
[1725718544075,1.66612571,2303.4,2303.0,0.28257767]
[1725718544279,1.66612571,2303.4,2303.0,8.68418]
[1725718544473,4.66612571,2303.4,2303.0,8.68418]
[1725718544774,1.66612571,2303.4,2303.1,4.62438225]
[1725718544997,0.05000006,2303.4,2303.1,4.62438225]
[1725718545869,0.05000006,2303.4,2303.1,0.28247225]
[1725718546193,0.05000006,2303.4,2303.1,4.62444225]
[1725718550299,0.05000006,2303.4,2303.1,0.28247225]
[1725718551066,4.39157006,2303.4,2303.1,0.28247225]
[1725718551298,1.63763316,2303.3,2303.1,0.28247225]
[1725718551604,1.63763316,2303.3,2302.5,4.343]
[1725718551605,4.34222,2303.0,2302.5,4.343]
[1725718551767,0.05000006,2302.9,2302.6,4.34288]
[1725718552168,0.05000006,2302.9,2302.5,4.343]
[1725718552470,0.05000006,2303.0,2302.7,4.34271]
[1725718553101,0.05000006,2303.0,2302.7,8.68534]
[1725718553265,0.05000006,2303.0,2302.7,8.68526]
[1725718553800,3.05000006,2303.1,2302.8,4.34242]
[1725718554605,3.05000006,2303.1,2302.7,4.34272]
[1725718554606,3.0,2303.1,2302.9,4.34226]
[1725718554809,3.0,2303.1,2302.9,8.68452]
[1725718554963,3.0,2303.1,2303.0,4.34216]
[1725718555299,1.63763316,2303.3,2303.0,4.34216]
[1725718555503,0.05000006,2303.2,2303.0,4.34216]
[1725718556177,4.68763322,2303.3,2303.0,4.34216]
[1725718556793,0.05000006,2303.2,2303.1,0.28264482]
[1725718557568,0.05000006,2303.2,2302.9,8.6845]
[1725718557774,0.05000006,2303.2,2303.1,0.28264482]
[1725718558014,0.05000006,2303.2,2303.0,4.34215]
[1725718558177,0.05000006,2303.2,2303.1,0.28264482]
[1725718558975,3.05000006,2303.3,2303.1,4.62461482]
[1725718559396,4.42056032,2303.3,2303.1,4.62461482]
[1725718559716,1.42056032,2303.3,2303.1,4.62461482]
[1725718559873,0.05000006,2303.3,2303.1,4.62448482]
[1725718560070,0.05000006,2303.4,2303.1,4.62448482]
[1725718560618,0.05000006,2303.4,2303.1,0.28264482]
[1725718560808,0.05000006,2303.4,2302.9,8.68447]
[1725718560809,5.89608532,2303.4,2302.9,8.68447]
[1725718561113,5.89608532,2303.4,2303.2,0.27303135]
[1725718561323,5.89608532,2303.4,2302.9,4.34221]
[1725718561475,5.89608532,2303.4,2303.3,0.27292594]
[1725718561675,5.89608532,2303.4,2302.9,4.34221]
[1725718561901,5.89608532,2303.4,2303.3,0.27292594]
[1725718562096,10.23767532,2303.4,2302.9,4.34221]
[1725718562425,5.89608532,2303.4,2302.9,4.34221]
[1725718562619,5.6017,2303.3,2303.0,0.2732422]
[1725718562780,0.05000006,2303.2,2303.0,0.2732422]
[1725718562982,1.19977859,2303.2,2303.0,0.2732422]
[1725718563522,3.05000006,2303.3,2303.0,4.6153022]
[1725718563691,0.05000006,2303.3,2303.1,4.34197]
[1725718564100,0.05000006,2303.3,2303.2,0.27294508]
[1725718564587,2.6017,2303.2,2302.8,8.68483]
[1725718564788,2.6017,2303.2,2302.6,2.6555]
[1725718564789,4.39205006,2303.1,2302.6,4.34282]
[1725718564990,0.81046926,2303.0,2302.7,4.3427]
[1725718565217,0.05000006,2302.9,2302.7,4.3427]
[1725718565605,0.05000006,2302.9,2302.8,4.34253]
[1725718565796,0.05000006,2303.0,2302.8,4.34253]
[1725718567238,1.12061332,2303.0,2302.6,4.3429]
[1725718567597,1.12061332,2303.0,2302.6,8.6858]
[1725718567906,5.46278332,2303.0,2302.6,4.3429]
[1725718568109,2.6017,2302.7,2302.2,4.34351]
[1725718568315,0.05000006,2302.6,2302.4,4.34328]
[1725718569045,0.05000006,2302.6,2302.2,8.68714]
[1725718569213,0.05000006,2302.6,2302.2,4.34353]
[1725718569550,0.74942607,2302.6,2302.2,4.34353]
[1725718570097,5.09235607,2302.6,2302.2,4.34353]
[1725718570326,0.74942607,2302.6,2302.2,4.34353]
[1725718570745,0.05000006,2302.6,2302.3,4.34346]
[1725718571740,0.05000006,2302.6,2302.4,0.2706754]
[1725718572301,0.96076758,2302.6,2302.4,0.2706754]
[1725718572645,0.91076752,2302.5,2302.4,0.2706754]
[1725718573005,5.25386752,2302.5,2302.4,0.2706754]
[1725718573205,5.25386752,2302.5,2300.9,1.80253018]
[1725718573206,2.8651,2301.9,2301.3,3.0293]
[1725718573403,0.05000006,2301.8,2301.3,3.0293]
[1725718573630,0.91007575,2301.7,2301.4,0.27173072]
[1725718573837,0.96007581,2301.7,2301.4,4.34508]
[1725718574012,0.05000006,2301.7,2301.5,0.27220774]
[1725718574432,0.96007581,2301.8,2301.6,4.3448]
[1725718574742,0.05000006,2301.8,2301.6,4.61691657]
[1725718575045,0.91007575,2301.9,2301.6,4.61681657]
[1725718575046,0.05000006,2301.9,2301.6,4.61681657]
[1725718575337,0.91007575,2302.1,2301.9,4.34423]
[1725718575541,0.91007575,2302.2,2301.9,4.34423]
[1725718575740,0.96007581,2302.2,2301.9,4.34423]
[1725718576131,0.91007575,2302.1,2301.9,4.34423]
[1725718576336,0.96007581,2302.2,2301.9,4.34423]
[1725718577205,0.96007581,2302.2,2302.0,4.34404]
[1725718577613,0.05000006,2302.2,2302.1,0.27258875]
[1725718577906,0.96007581,2302.2,2302.1,0.27258875]
[1725718578243,0.05000006,2302.2,2302.1,0.27258875]
[1725718578458,0.96007581,2302.2,2302.1,0.27258875]
[1725718578812,0.96007581,2302.2,2301.9,4.34423]
[1725718579050,0.96007581,2302.2,2302.1,0.27251679]
[1725718579515,0.96007581,2302.2,2301.9,4.34423]
[1725718579720,0.96007581,2302.2,2302.0,0.27262231]
[1725718580033,2.0954499,2302.2,2302.0,0.27262231]
[1725718580206,2.0954499,2302.2,2301.8,4.3443]
[1725718580406,2.0954499,2302.2,2301.9,4.34421]
[1725718580608,0.96007581,2302.2,2301.9,4.34421]
[1725718581061,9.0285415,2302.4,2302.2,4.34367]
[1725718581062,0.91007575,2302.4,2302.2,4.34367]
[1725718581347,1.36511363,2302.5,2302.2,4.34354]
[1725718581348,0.91007575,2302.5,2302.2,4.34354]
[1725718581648,0.91007575,2302.4,2302.2,4.34354]
[1725718583777,0.91007575,2302.4,2301.8,6.93781]
[1725718583778,0.96007581,2302.3,2301.8,6.93781]
[1725718583989,0.96007581,2302.3,2301.6,4.34468]
[1725718583990,0.91007575,2302.1,2301.6,4.34468]
[1725718584117,0.05000006,2302.0,2301.6,4.34468]
[1725718585244,0.05000006,2302.0,2301.6,8.68938]
[1725718585451,0.05000006,2302.0,2301.6,4.34468]
[1725718585947,0.05000006,2302.0,2301.6,8.68939]
[1725718586105,0.05000006,2302.0,2301.6,8.68937]
[1725718586310,0.05000006,2302.0,2301.6,8.68938]
[1725718586714,0.05000006,2302.0,2301.7,0.27282379]
[1725718587824,0.05000006,2302.0,2301.7,4.61742379]
[1725718588028,0.05000006,2302.1,2301.7,4.61742379]
[1725718590520,0.05000006,2302.1,2301.8,4.34441]
[1725718590714,0.05000006,2302.1,2301.9,0.27268468]
[1725718591886,8.57378363,2302.3,2301.9,0.27268468]
[1725718591887,3.77517575,2302.3,2301.9,0.27268468]
[1725718592037,3.96007581,2302.4,2302.0,4.34401]
[1725718592545,3.96007581,2302.4,2302.1,4.61622363]
[1725718592741,3.96007581,2302.4,2302.2,4.34352]
[1725718593073,0.91007575,2302.4,2302.3,4.61574262]
[1725718593283,3.82517581,2302.5,2302.3,4.61574262]
[1725718594553,0.91007575,2302.4,2302.3,4.61574262]
[1725718594754,0.91007575,2302.4,2302.3,0.27226262]
[1725718595064,0.91007575,2302.4,2302.2,8.68707]
[1725718595294,0.91007575,2302.4,2302.3,0.27240653]
[1725718595645,0.91007575,2302.4,2302.2,4.34352]
[1725718595847,0.91007575,2302.5,2302.3,0.27237775]
[1725718596169,0.91007575,2302.5,2302.2,4.34348]
[1725718596371,0.91007575,2302.5,2302.3,0.27232018]
[1725718596567,0.91007575,2302.5,2302.2,4.34348]
[1725718596768,0.91007575,2302.5,2302.3,0.27232018]
[1725718596969,0.96007581,2302.5,2302.2,4.34348]
[1725718597159,0.96007581,2302.5,2302.3,0.27232018]
[1725718597474,0.96007581,2302.5,2302.3,4.34346]
[1725718597691,0.91007575,2302.5,2302.4,0.27221469]
[1725718598852,0.91007575,2302.5,2302.4,4.61550469]
[1725718599049,0.91007575,2302.6,2302.4,4.61550469]
[1725718599249,0.91007575,2302.6,2302.5,4.3431]
[1725718599554,0.91007575,2302.8,2302.5,8.15928595]
[1725718600482,0.91007575,2302.8,2302.6,4.34291]
[1725718600851,0.91007575,2302.8,2302.7,0.27133705]
[1725718601666,1.41511369,2302.9,2302.5,4.3431]
[1725718601969,0.90979877,2302.8,2302.6,4.61432252]
[1725718602394,0.90979877,2302.8,2302.7,4.34272]
[1725718602592,1.41511369,2302.9,2302.7,4.34272]
[1725718602593,0.95979883,2302.9,2302.7,4.61405705]
[1725718602816,0.90979877,2302.8,2302.7,4.61405705]
[1725718603165,0.90979877,2302.8,2302.7,0.27133705]
[1725718603386,0.90979877,2302.8,2302.5,8.68592]
[1725718603669,0.90979877,2302.8,2302.7,0.27133705]
[1725718606012,0.95979883,2302.9,2302.7,0.27133705]
[1725718606166,0.90979877,2302.8,2302.7,0.27133705]
[1725718607094,4.01861363,2302.8,2302.7,0.27133705]
[1725718607301,1.41511369,2302.9,2302.5,4.343]
[1725718607503,0.91027378,2302.7,2302.5,4.343]
[1725718607812,0.91027378,2302.7,2302.6,0.27128428]
[1725718608299,0.91027378,2302.7,2302.5,4.343]
[1725718608513,0.91027378,2302.6,2302.5,4.343]
[1725718608737,0.91027378,2302.7,2302.5,4.343]
[1725718609740,0.91027378,2302.7,2302.6,4.34291]
[1725718610131,0.91027378,2302.7,2302.6,4.61419428]
[1725718610341,0.91027378,2302.8,2302.7,4.34272]
[1725718610632,0.91027378,2302.9,2302.8,4.34253]
[1725718611004,0.91027378,2302.9,2302.8,4.61360336]
[1725718612019,0.91027378,2303.0,2302.8,4.61360336]
[1725718612427,0.91027378,2302.9,2302.8,4.61360336]
[1725718614464,0.91027378,2303.0,2302.9,4.34235]
[1725718614829,0.91027378,2303.0,2302.9,4.61294389]
[1725718618063,1.36511363,2303.1,2302.9,4.61294389]
[1725718618277,0.91018568,2303.0,2302.9,4.61294389]
[1725718620567,8.93961878,2303.0,2302.9,0.27059389]
[1725718620755,8.98011156,2303.0,2302.9,0.27059389]
[1725718621066,12.43559509,2303.0,2302.5,8.68596]
[1725718621275,3.67809896,2302.7,2302.0,3.1698]
[1725718621486,4.34361,2302.3,2301.8,4.34432]
[1725718621722,2.7678,2302.1,2301.8,4.34432]
[1725718622024,1.41544851,2302.0,2301.6,4.34461]
[1725718622219,1.5106836,2301.9,2301.4,8.69013]
[1725718622519,1.56068366,2301.9,2301.5,4.34487]
[1725718622723,1.56068366,2301.9,2301.4,4.34499]
[1725718622724,1.56068366,2301.9,2301.6,4.34479]
[1725718623019,0.96029902,2301.9,2301.6,8.68949]
[1725718623315,0.96029902,2301.9,2301.6,4.3447]
[1725718623918,0.96029902,2301.9,2301.6,8.6894]
[1725718624287,0.05000006,2301.9,2301.6,8.6894]
[1725718624494,0.05000006,2301.9,2301.7,4.34456]
[1725718625075,0.91029896,2302.2,2301.7,7.947366]
[1725718625284,0.91029896,2302.2,2301.8,4.34435]
[1725718625285,0.96029902,2302.2,2301.8,4.34435]
[1725718625732,0.91029896,2302.1,2301.8,4.34435]
[1725718625933,1.41544851,2302.2,2301.8,4.34435]
[1725718625934,0.96029902,2302.2,2301.8,4.34435]
[1725718627146,0.96029902,2302.2,2301.9,4.34418]
[1725718627294,0.96029902,2302.2,2301.8,4.34435]
[1725718627500,0.91029896,2302.1,2301.8,4.34435]
[1725718627699,0.05000006,2302.1,2301.8,4.34435]
[1725718627938,0.96029902,2302.1,2301.8,4.34435]
[1725718628244,4.87709256,2302.1,2301.6,4.34469]
[1725718628444,4.34473,2301.7,2301.0,7.07981]
[1725718628601,0.05000006,2301.6,2301.2,4.34544]
[1725718628811,0.05000006,2301.6,2301.3,4.34526]
[1725718629345,0.05000006,2301.6,2301.2,4.34544]
[1725718629713,0.91029896,2301.7,2301.1,0.08690942]
[1725718629915,3.96029902,2301.8,2301.4,4.34502]
[1725718630303,3.91029896,2301.8,2301.5,4.34486]
[1725718630648,0.91029896,2301.9,2301.7,4.3446]
[1725718630941,0.96029902,2302.1,2301.8,4.34442]
[1725718631511,0.91029896,2302.1,2301.8,4.34442]
[1725718631918,0.91029896,2302.1,2301.9,0.26328897]
[1725718632433,0.91029896,2302.1,2301.8,4.34442]
[1725718632597,0.91029896,2302.1,2301.7,8.68912]
[1725718632796,0.96029902,2302.1,2301.8,4.60780451]
[1725718633023,0.91029896,2302.1,2301.8,4.60780451]
[1725718633537,0.91029896,2302.2,2302.0,4.34404]
[1725718633849,0.91029896,2302.4,2302.2,4.34367]
[1725718634057,0.91029896,2302.5,2302.2,4.34367]
[1725718634367,0.91029896,2302.5,2302.3,4.60676893]
[1725718634524,0.91029896,2302.5,2302.2,4.80434479]
[1725718634721,1.36544845,2302.5,2302.4,0.26317628]
[1725718634958,1.36544845,2302.5,2302.3,0.26328177]
[1725718635123,1.36544845,2302.5,2302.4,0.26317628]
[1725718635564,0.91014916,2302.5,2302.2,8.68714]
[1725718635759,1.36544845,2302.5,2302.4,0.26307609]
[1725718635964,1.36544845,2302.5,2302.3,0.26318158]
[1725718636124,1.36544845,2302.5,2302.4,4.60636609]
[1725718636125,0.91012292,2302.5,2302.4,4.60636609]
[1725718636327,0.91012292,2302.5,2302.4,8.94965609]
[1725718636522,0.91012292,2302.7,2302.4,4.60625609]
[1725718637062,0.91012292,2302.7,2302.4,8.94943609]
[1725718637359,0.91012292,2302.7,2302.5,4.3431]
[1725718637765,0.91021578,2302.7,2302.6,0.26277211]
[1725718638071,1.36544845,2302.8,2302.4,4.34318]
[1725718638225,0.91021686,2302.7,2302.6,0.26277211]
[1725718638566,0.91021686,2302.7,2302.4,4.34318]
[1725718638755,0.91021686,2302.7,2302.4,8.68634]
[1725718638927,0.91021686,2302.7,2302.5,0.26287759]
[1725718639128,0.91021686,2302.6,2302.5,0.26287759]
[1725718640735,1.36544845,2302.6,2302.5,0.26287759]
[1725718640942,1.36544845,2302.6,2302.3,4.34344]
[1725718641131,1.36544845,2302.6,2302.5,0.26268441]
[1725718641334,1.36544845,2302.6,2302.4,0.2627899]
[1725718641557,1.36544845,2302.6,2302.5,0.26268441]
[1725718641558,3.06350376,2302.6,2302.5,0.26268441]
[1725718641930,3.06350376,2302.6,2302.2,4.3435]
[1725718642132,3.06350376,2302.6,2302.5,0.26268441]
[1725718642469,1.36544845,2302.6,2302.5,0.26268441]
[1725718642780,0.91034071,2302.7,2302.6,4.34291]
[1725718643076,0.91034071,2302.7,2302.6,4.60548894]
[1725718646041,1.36544845,2302.8,2302.7,4.34272]
[1725718646344,0.91012335,2302.8,2302.7,8.68544]
[1725718646566,0.91012335,2302.9,2302.8,4.34253]
[1725718646930,0.91012335,2302.9,2302.8,4.60433276]
[1725718647358,0.89472603,2302.9,2302.8,4.60433276]
[1725718647570,0.89472603,2302.9,2302.8,0.26180276]
[1725718647873,0.89472603,2302.9,2302.7,8.68544]
[1725718648056,0.89472603,2302.9,2302.8,4.60413248]
[1725718648264,0.89472603,2302.9,2302.8,0.26160248]
[1725718648436,1.36544845,2302.9,2302.6,4.34282]
[1725718648785,1.36544845,2302.9,2302.8,0.26157387]
[1725718649286,1.41544851,2303.0,2302.6,4.34282]
[1725718649572,8.18257617,2303.0,2302.8,0.26157387]
[1725718649888,8.18257617,2303.0,2302.5,4.34297]
[1725718650175,2.7835,2302.8,2302.5,4.34297]
[1725718650375,2.7835,2302.8,2302.6,0.26179194]
[1725718650376,4.19894851,2302.8,2302.6,0.26179194]
[1725718650576,2.83350006,2302.8,2302.6,0.26179194]
[1725718650870,4.14894845,2302.8,2302.6,0.26179194]
[1725718651356,2.7835,2302.8,2302.6,0.26179194]
[1725718651560,0.05000006,2302.7,2302.6,0.26179194]
[1725718651874,0.05000006,2302.7,2302.4,4.34328]
[1725718652031,0.05000006,2302.7,2302.6,0.26189923]
[1725718652348,5.70779845,2302.9,2302.4,4.34328]
[1725718652545,1.41544851,2302.8,2302.6,0.26189923]
[1725718652885,1.41544851,2302.8,2302.3,4.34334]
[1725718652886,0.05000006,2302.8,2302.7,0.26179376]
[1725718653179,0.05000006,2302.8,2302.5,4.3431]
[1725718653365,0.05000006,2302.8,2302.7,0.26179376]
[1725718653529,0.05000006,2302.8,2302.6,0.26189923]
[1725718653733,0.05000006,2302.8,2302.7,0.26179376]
[1725718654187,0.05000006,2302.8,2302.5,4.3431]
[1725718654335,1.41544851,2302.8,2302.7,0.26179376]
[1725718654540,1.41544851,2302.9,2302.6,2.85789923]
[1725718654771,1.36544845,2302.8,2302.6,2.596]
[1725718654949,1.41544851,2302.9,2302.7,0.26179376]
[1725718655150,1.36544845,2302.8,2302.7,0.26179376]
[1725718655533,1.36544845,2302.8,2302.5,4.3431]
[1725718655738,1.36544845,2302.8,2302.7,0.26179376]
[1725718655952,1.36544845,2302.8,2302.6,0.26189923]
[1725718656154,1.36544845,2302.8,2302.7,0.26179376]
[1725718656353,1.61034463,2302.8,2302.7,0.26179376]
[1725718656652,5.95287463,2302.8,2302.7,0.26179376]
[1725718656871,5.95287463,2302.8,2302.1,6.93972]
[1725718656872,10.93893513,2302.8,2302.1,4.34372]
[1725718657050,10.93893513,2302.8,2302.0,4.34401]
[1725718657051,1.36549221,2302.6,2302.0,4.34401]
[1725718657374,1.36549221,2302.6,2302.4,8.68631]
[1725718657375,0.91033529,2302.6,2302.4,8.68631]
[1725718657746,0.91033529,2302.6,2302.5,4.3431]
[1725718658160,0.91033529,2302.7,2302.6,4.34291]
[1725718658476,0.91033529,2302.8,2302.7,4.34272]
[1725718659358,0.91033529,2302.8,2302.7,5.211283]
[1725718661096,0.91033529,2302.9,2302.7,5.211283]
[1725718661298,0.91033529,2302.8,2302.7,4.34272]
[1725718661999,0.91033529,2302.9,2302.8,4.34253]
[1725718662307,0.91033529,2302.9,2302.8,4.60398491]
[1725718667911,0.91033529,2302.9,2302.8,0.26145491]
[1725718668095,0.05000006,2302.9,2302.7,4.34272]
[1725718668302,0.91044947,2302.8,2302.7,4.34272]
[1725718671026,0.91089257,2302.8,2302.7,4.34272]
[1725718671330,0.91088454,2302.8,2302.7,4.34272]
[1725718672999,1.41549227,2302.9,2302.7,4.34272]
[1725718673193,0.91101749,2302.8,2302.7,4.34272]
[1725718673396,1.41549227,2302.9,2302.7,4.34272]
[1725718673597,0.91110979,2302.8,2302.7,4.34272]
[1725718673903,1.36549221,2302.8,2302.7,4.34272]
[1725718674220,0.91111401,2302.8,2302.7,4.34272]
[1725718674436,0.91128378,2302.8,2302.7,4.34272]
[1725718674747,0.91128378,2302.8,2302.7,5.211288]
[1725718674915,1.82065629,2303.0,2302.9,6.95295]
[1725718674916,0.91128378,2303.0,2302.9,6.95295]
[1725718675103,0.91128378,2303.1,2303.0,8.68432]
[1725718675299,1.36549221,2303.2,2303.1,4.34197]
[1725718675847,1.82065629,2303.3,2303.2,4.34178]
[1725718676211,1.82310803,2303.3,2303.2,4.34178]
[1725718676812,1.82310803,2303.3,2303.2,0.26050241]
[1725718677017,1.82310803,2303.3,2303.2,4.60228241]
[1725718677213,1.82310803,2303.3,2303.2,4.34178]
[1725718677444,1.82310803,2303.3,2303.2,4.60228241]
[1725718679422,2.27893956,2303.3,2303.2,4.60228241]
[1725718679932,1.82394482,2303.3,2303.2,4.60228241]
[1725718680328,2.27893956,2303.3,2303.2,4.60228241]
[1725718680855,2.27893956,2303.4,2303.2,4.60228241]
[1725718681063,2.27893956,2303.3,2303.2,4.60228241]
[1725718681555,2.27893956,2303.4,2303.2,4.60228241]
[1725718681734,3.05000006,2303.5,2303.2,4.60228241]
[1725718681735,2.27893956,2303.3,2303.2,4.60228241]
[1725718682167,5.79500627,2303.3,2303.2,0.26050241]
[1725718682499,5.79500627,2303.3,2302.6,7.38928]
[1725718682500,2.7097,2303.0,2302.4,4.34324]
[1725718682653,0.91224583,2302.5,2302.4,4.34324]
[1725718683050,1.36836875,2302.5,2302.4,4.34324]
[1725718683254,1.36836875,2302.6,2302.5,4.3431]
[1725718683987,1.82449167,2302.6,2302.5,4.3431]
[1725718684293,0.05000006,2302.7,2302.5,4.3431]
[1725718684294,1.87449173,2302.7,2302.5,4.3431]
[1725718684493,1.82449167,2302.6,2302.5,4.3431]
[1725718684657,1.36841979,2302.6,2302.5,4.3431]
[1725718684989,1.82449167,2302.6,2302.5,4.3431]
[1725718685994,1.82449167,2302.6,2302.4,4.34324]
[1725718686198,1.87449173,2302.5,2302.1,4.34385]
[1725718686381,0.91227266,2302.2,2302.1,4.34385]
[1725718686559,1.36840899,2302.3,2302.2,4.34367]
[1725718686872,1.36840899,2302.3,2302.2,8.68734]
[1725718687071,1.36840899,2302.4,2302.3,4.34348]
[1725718687465,1.82449167,2302.4,2302.3,4.34348]
[1725718688803,1.36838901,2302.4,2302.3,4.34348]
[1725718689006,1.87449173,2302.5,2302.3,4.34348]
[1725718689165,1.82449167,2302.4,2302.3,4.34348]
[1725718690580,1.87449173,2302.5,2302.3,4.34348]
[1725718690780,1.36820682,2302.4,2302.3,4.34348]
[1725718691010,1.36820736,2302.4,2302.3,4.34348]